[Event "FIDE Women World Blitz 2021"]
[Site "Warsaw"]
[Date "2021.12.29"]
[Round "7.32"]
[White "Loskutova, Viktoriya"]
[Black "Movsesian, Julia"]
[Result "1-0"]
[ECO "C41"]
[WhiteElo "2195"]
[BlackElo "2322"]
[Annotator "NA"]
[PlyCount "125"]
[EventDate "2021.12.29"]
[EventType "swiss"]
[EventCountry "POL"]
[Tiebreak "Cut1 Buchholz"]
[SourceTitle "playchess.com"]
[Source "ChessBase"]
[SourceQuality "1"]
[TimeControl "180+2"]

1. e4 {[%emt 0:00:01]} d6 {[%emt 0:00:01]} 2. d4 {[%emt 0:00:01]} Nf6 {[%emt 0:
00:00]} 3. Nc3 {[%emt 0:00:02]} Nbd7 {[%emt 0:00:01]} 4. Nf3 {[%emt 0:00:11]}
e5 {[%emt 0:00:00]} 5. Bc4 {[%emt 0:00:01]} Be7 {[%emt 0:00:01]} 6. O-O {
[%emt 0:00:02]} O-O {[%emt 0:00:01]} 7. h3 {[%emt 0:00:04]} c6 {[%emt 0:00:07]}
8. a4 {[%emt 0:00:01]} a5 {[%emt 0:00:05]} 9. Re1 {[%emt 0:00:04]} exd4 {
[%emt 0:00:04]} 10. Nxd4 {[%emt 0:00:02]} Ne5 {[%emt 0:00:01]} 11. Bf1 {
[%emt 0:00:09]} Qc7 {[%emt 0:00:06]} 12. f4 {[%emt 0:00:15]} Ng6 {[%emt 0:00:
00]} 13. Be3 {[%emt 0:00:05]} Re8 {[%emt 0:00:01]} 14. Bd3 {[%emt 0:00:10]} Bf8
{[%emt 0:00:08]} 15. Qf3 {[%emt 0:00:06]} Nd7 {[%emt 0:00:18]} 16. Bf2 {
[%emt 0:00:08]} Nc5 {[%emt 0:00:01]} 17. Bc4 {[%emt 0:00:01]} Bd7 {[%emt 0:00:
28]} 18. Nf5 {[%emt 0:00:15]} d5 {[%emt 0:00:08]} 19. Ba2 {[%emt 0:00:59]} dxe4
{[%emt 0:00:14]} 20. Qh5 {[%emt 0:00:02]} Qxf4 {[%emt 0:00:10]} 21. Ne3 {
[%emt 0:00:06]} Bd6 {[%emt 0:00:07]} 22. Nf1 {[%emt 0:00:03]} Qf5 {[%emt 0:00:
16]} 23. Qd1 {[%emt 0:00:03]} Qf6 {[%emt 0:00:25]} 24. Bd4 {[%emt 0:00:15]} Qe7
{[%emt 0:00:12]} 25. Kh1 {[%emt 0:00:11]} Rad8 {[%emt 0:00:01]} 26. Qe2 {
[%emt 0:00:03]} Kh8 {[%emt 0:00:13]} 27. Rad1 {[%emt 0:00:13]} f5 {[%emt 0:00:
01]} 28. Qd2 {[%emt 0:00:12]} Bc8 {[%emt 0:00:08]} 29. Qf2 {[%emt 0:00:02]} Ne5
{[%emt 0:00:09]} 30. Ne3 {[%emt 0:00:05]} Rf8 {[%emt 0:00:00]} 31. Nc4 {
[%emt 0:00:03]} Nxc4 {[%emt 0:00:02]} 32. Bxc4 {[%emt 0:00:03]} Ne6 {[%emt 0:
00:02]} 33. Bb6 {[%emt 0:00:00]} Rde8 {[%emt 0:00:02]} 34. Bxa5 {[%emt 0:00:04]
} Nf4 {[%emt 0:00:02]} 35. Bf1 {[%emt 0:00:02]} Nh5 {[%emt 0:00:01]} 36. Bb6 {
[%emt 0:00:05]} Bb8 {[%emt 0:00:07]} 37. Kg1 {[%emt 0:00:03]} Qg5 {[%emt 0:00:
00]} 38. Be2 {[%emt 0:00:02]} Nf4 {[%emt 0:00:01]} 39. Kf1 {[%emt 0:00:01]} Be6
{[%emt 0:00:03]} 40. Be3 {[%emt 0:00:02]} Bg8 {[%emt 0:00:06]} 41. g3 {[%emt 0:
00:01]} Qh6 {[%emt 0:00:05]} 42. Bxf4 {[%emt 0:00:01]} Qxh3+ {[%emt 0:00:00]}
43. Qg2 {[%emt 0:00:01]} Qxg2+ {[%emt 0:00:01]} 44. Kxg2 {[%emt 0:00:02]} Ba7 {
[%emt 0:00:02]} 45. a5 {[%emt 0:00:01]} h6 {[%emt 0:00:01]} 46. Bf1 {[%emt 0:
00:02]} g5 {[%emt 0:00:01]} 47. Be3 {[%emt 0:00:00]} Kg7 {[%emt 0:00:01]} 48.
Bxa7 {[%emt 0:00:02]} f4 {[%emt 0:00:02]} 49. Bd4+ {[%emt 0:00:01]} Kg6 {
[%emt 0:00:01]} 50. Rxe4 {[%emt 0:00:01]} Rxe4 {[%emt 0:00:01]} 51. Nxe4 {
[%emt 0:00:01]} Bd5 {[%emt 0:00:01]} 52. Bd3 {[%emt 0:00:01]} Kf5 {[%emt 0:00:
01]} 53. g4+ {[%emt 0:00:03]} Kxg4 {[%emt 0:00:02]} 54. Kf2 {[%emt 0:00:00]}
Bxe4 55. Bxe4 h5 {[%emt 0:00:06]} 56. Rg1+ {[%emt 0:00:03]} Kh4 {[%emt 0:00:01]
} 57. Rh1+ {[%emt 0:00:03]} Kg4 {[%emt 0:00:00]} 58. Bf3+ {[%emt 0:00:01]} Kf5
{[%emt 0:00:01]} 59. Rxh5 {[%emt 0:00:01]} Rd8 {[%emt 0:00:00]} 60. Bc3 {
[%emt 0:00:02]} Re8 {[%emt 0:00:03]} 61. Rh7 {[%emt 0:00:01]} Rd8 {[%emt 0:00:
02]} 62. Rf7+ {[%emt 0:00:02]} Kg6 {[%emt 0:00:02]} 63. Rxb7 {[%emt 0:00:03]}
1-0

[Event "FIDE Women World Blitz 2021"]
[Site "Warsaw"]
[Date "2021.12.29"]
[Round "7.33"]
[White "Ovod, Evgenija"]
[Black "Batsiashvili, Nino"]
[Result "0-1"]
[ECO "C54"]
[WhiteElo "2366"]
[BlackElo "2491"]
[Annotator "ChessBase"]
[PlyCount "78"]
[EventDate "2021.12.29"]
[EventType "swiss"]
[EventCountry "POL"]
[Tiebreak "Cut1 Buchholz"]
[SourceTitle "playchess.com"]
[Source "ChessBase"]
[SourceQuality "1"]
[TimeControl "180+2"]

1. e4 {[%emt 0:00:00]} e5 {[%emt 0:00:00]} 2. Nf3 {[%emt 0:00:01]} Nc6 {
[%emt 0:00:01]} 3. Bc4 {[%emt 0:00:01]} Nf6 {[%emt 0:00:02]} 4. d3 {[%emt 0:00:
00]} Bc5 {[%emt 0:00:01]} 5. O-O {[%emt 0:00:02]} a6 {[%emt 0:00:02]} 6. c3 {
[%emt 0:00:04]} Ba7 {[%emt 0:00:13]} 7. Bb3 {[%emt 0:00:02]} d6 {[%emt 0:00:06]
} 8. Nbd2 {[%emt 0:00:02]} O-O {[%emt 0:00:02]} 9. h3 {[%emt 0:00:01]} Ne7 {
[%emt 0:00:05]} 10. Re1 {[%emt 0:00:03]} Ng6 {[%emt 0:00:03]} 11. Nf1 {[%emt 0:
00:00]} c6 {[%emt 0:00:10]} 12. Ng3 {[%emt 0:00:04]} Be6 {[%emt 0:00:19]} 13.
Bc2 {[%emt 0:00:06]} Qc7 {[%emt 0:00:07]} 14. d4 {[%emt 0:00:08]} exd4 {
[%emt 0:00:23]} 15. cxd4 {[%emt 0:00:06]} c5 {[%emt 0:00:15]} 16. d5 {[%emt 0:
00:07]} Bc8 {[%emt 0:00:02]} 17. Bg5 {[%emt 0:01:02]} Nd7 {[%emt 0:00:03]} 18.
Nf5 {[%emt 0:00:02]} f6 {[%emt 0:00:17]} 19. Be3 {[%emt 0:00:16]} Nde5 {
[%emt 0:00:00]} 20. Nd2 {[%emt 0:00:20]} c4 {[%emt 0:00:13]} 21. Nd4 {[%emt 0:
00:08]} b5 {[%emt 0:00:08]} 22. Nf1 {[%emt 0:00:10]} Re8 {[%emt 0:00:15]} 23.
f4 {[%emt 0:00:10]} Nf7 {[%emt 0:00:02]} 24. f5 {[%emt 0:00:06]} Nge5 {[%emt 0:
00:03]} 25. Ne6 {[%emt 0:00:03]} Bxe3+ {[%emt 0:00:06]} 26. Nxe3 {[%emt 0:00:
02]} Qb6 {[%emt 0:00:02]} 27. Kh2 {[%emt 0:00:05]} Bd7 {[%emt 0:00:04]} 28. g4
{[%emt 0:00:10]} Rac8 {[%emt 0:00:09]} 29. h4 {[%emt 0:00:05]} b4 {[%emt 0:00:
08]} 30. Kg3 {[%emt 0:00:17]} b3 {[%emt 0:00:12]} 31. axb3 {[%emt 0:00:03]}
cxb3 {[%emt 0:00:00]} 32. Bxb3 {[%emt 0:00:02]} Rb8 {[%emt 0:00:10]} 33. Ra3 {
[%emt 0:00:04]} a5 {[%emt 0:00:05]} 34. Re2 {[%emt 0:00:03]} Qb4 {[%emt 0:00:
03]} 35. Nc2 {[%emt 0:00:06]} Qb6 {[%emt 0:00:06]} 36. Ncd4 {[%emt 0:00:02]}
Nh6 {[%emt 0:00:09]} 37. g5 {[%emt 0:00:02]} Nhg4 {[%emt 0:00:02]} 38. gxf6 {
[%emt 0:00:06]} Nxf6 {[%emt 0:00:01]} 39. Ba2 {[%emt 0:00:08]} Re7 0-1

[Event "FIDE Women World Blitz 2021"]
[Site "Warsaw"]
[Date "2021.12.29"]
[Round "7.34"]
[White "Nurgali, Nazerke"]
[Black "Padmini, Rout"]
[Result "0-1"]
[ECO "D94"]
[WhiteElo "2267"]
[BlackElo "2353"]
[Annotator "NA"]
[PlyCount "122"]
[EventDate "2021.12.29"]
[EventType "swiss"]
[EventCountry "POL"]
[Tiebreak "Cut1 Buchholz"]
[SourceTitle "playchess.com"]
[Source "ChessBase"]
[SourceQuality "1"]
[TimeControl "180+2"]

1. d4 {[%emt 0:00:01]} Nf6 {[%emt 0:00:01]} 2. Nf3 {[%emt 0:00:02]} g6 {
[%emt 0:00:02]} 3. c4 {[%emt 0:00:02]} Bg7 {[%emt 0:00:01]} 4. Nc3 {[%emt 0:00:
01]} d5 {[%emt 0:00:01]} 5. e3 {[%emt 0:00:02]} O-O {[%emt 0:00:02]} 6. cxd5 {
[%emt 0:00:02]} Nxd5 {[%emt 0:00:01]} 7. Bc4 {[%emt 0:00:02]} Nb6 {[%emt 0:00:
05]} 8. Bb3 {[%emt 0:00:02]} c5 {[%emt 0:00:02]} 9. O-O {[%emt 0:00:02]} cxd4 {
[%emt 0:00:07]} 10. exd4 {[%emt 0:00:02]} Nc6 {[%emt 0:00:02]} 11. Be3 {
[%emt 0:00:17]} Bg4 {[%emt 0:00:05]} 12. h3 {[%emt 0:00:12]} Bxf3 {[%emt 0:00:
03]} 13. Qxf3 {[%emt 0:00:02]} Nxd4 {[%emt 0:00:16]} 14. Bxd4 {[%emt 0:00:04]}
Qxd4 {[%emt 0:00:01]} 15. Qxb7 {[%emt 0:00:05]} e6 {[%emt 0:00:02]} 16. Rad1 {
[%emt 0:00:14]} Qb4 {[%emt 0:00:29]} 17. Qf3 {[%emt 0:00:11]} a5 {[%emt 0:00:
03]} 18. Rfe1 {[%emt 0:00:39]} a4 {[%emt 0:00:02]} 19. Re4 {[%emt 0:00:04]} Qc5
{[%emt 0:00:27]} 20. Nxa4 {[%emt 0:00:07]} Nxa4 {[%emt 0:00:03]} 21. Rxa4 {
[%emt 0:00:05]} Rxa4 {[%emt 0:00:07]} 22. Bxa4 {[%emt 0:00:01]} Bxb2 {[%emt 0:
00:02]} 23. Bb3 {[%emt 0:00:12]} Bd4 {[%emt 0:00:12]} 24. a4 {[%emt 0:00:15]}
Qb6 {[%emt 0:00:29]} 25. Bc4 {[%emt 0:00:32]} Rd8 {[%emt 0:00:07]} 26. Be2 {
[%emt 0:00:00]} Kg7 {[%emt 0:00:06]} 27. Rc1 {[%emt 0:00:02]} Rd7 {[%emt 0:00:
13]} 28. g3 {[%emt 0:00:02]} Rd5 {[%emt 0:00:08]} 29. Rf1 {[%emt 0:00:08]} Rc5
{[%emt 0:00:08]} 30. Kg2 {[%emt 0:00:12]} Rc3 {[%emt 0:00:02]} 31. Qe4 {
[%emt 0:00:03]} Ra3 {[%emt 0:00:03]} 32. Qc2 {[%emt 0:00:08]} Qb7+ {[%emt 0:00:
06]} 33. Kh2 {[%emt 0:00:04]} h5 {[%emt 0:00:01]} 34. h4 {[%emt 0:00:02]} Qb4 {
[%emt 0:00:04]} 35. Bb5 {[%emt 0:00:02]} Rb3 {[%emt 0:00:04]} 36. Qe4 {[%emt 0:
00:02]} Rb2 {[%emt 0:00:02]} 37. Kg2 {[%emt 0:00:02]} Rd2 {[%emt 0:00:05]} 38.
Qf4 {[%emt 0:00:02]} Qb2 {[%emt 0:00:04]} 39. Be8 {[%emt 0:00:03]} Bf6 {
[%emt 0:00:04]} 40. Bc6 {[%emt 0:00:02]} Qc3 {[%emt 0:00:03]} 41. Bb5 {[%emt 0:
00:01]} Ra2 {[%emt 0:00:07]} 42. Be8 {[%emt 0:00:04]} Qc8 {[%emt 0:00:00]} 43.
Bb5 {[%emt 0:00:01]} Qb7+ {[%emt 0:00:02]} 44. Kg1 {[%emt 0:00:01]} Ra3 {
[%emt 0:00:03]} 45. Rd1 {[%emt 0:00:04]} Qb6 {[%emt 0:00:04]} 46. Rf1 {[%emt 0:
00:01]} Qa7 {[%emt 0:00:07]} 47. Kg2 {[%emt 0:00:01]} Qb7+ {[%emt 0:00:03]} 48.
Kg1 {[%emt 0:00:01]} Qd5 {[%emt 0:00:01]} 49. Re1 {[%emt 0:00:02]} Ra2 {
[%emt 0:00:02]} 50. Rf1 {[%emt 0:00:01]} Qc5 {[%emt 0:00:03]} 51. Be8 {[%emt 0:
00:01]} Ra3 {[%emt 0:00:02]} 52. Bb5 {[%emt 0:00:02]} Be5 {[%emt 0:00:01]} 53.
Qc1 {[%emt 0:00:05]} Rxg3+ {[%emt 0:00:02]} 54. Kh1 {[%emt 0:00:03]} Rh3+ {
[%emt 0:00:02]} 55. Kg1 {[%emt 0:00:00]} Rg3+ {[%emt 0:00:02]} 56. Kh1 {
[%emt 0:00:01]} Rc3 {[%emt 0:00:01]} 57. Qd2 {[%emt 0:00:03]} Rh3+ {[%emt 0:00:
05]} 58. Kg1 {[%emt 0:00:01]} Rxh4 {[%emt 0:00:01]} 59. Qe3 {[%emt 0:00:04]}
Rg4+ {[%emt 0:00:02]} 60. Kh1 {[%emt 0:00:01]} Bd4 {[%emt 0:00:01]} 61. Qf3 {
[%emt 0:00:03]} Qg5 {[%emt 0:00:02]} 0-1

[Event "FIDE Women World Blitz 2021"]
[Site "Warsaw"]
[Date "2021.12.29"]
[Round "7.35"]
[White "Wikar, Martyna"]
[Black "Garifullina, Leya"]
[Result "0-1"]
[ECO "B92"]
[WhiteElo "1899"]
[BlackElo "2416"]
[Annotator "NA"]
[PlyCount "97"]
[EventDate "2021.12.29"]
[EventType "swiss"]
[EventCountry "POL"]
[Tiebreak "Cut1 Buchholz"]
[SourceTitle "playchess.com"]
[Source "ChessBase"]
[SourceQuality "1"]
[TimeControl "180+2"]

1. e4 {[%emt 0:00:01]} c5 {[%emt 0:00:00]} 2. Nf3 {[%emt 0:00:02]} d6 {[%emt 0:
00:01]} 3. d4 {[%emt 0:00:01]} cxd4 {[%emt 0:00:01]} 4. Nxd4 {[%emt 0:00:01]}
Nf6 {[%emt 0:00:01]} 5. Nc3 {[%emt 0:00:02]} a6 {[%emt 0:00:01]} 6. f4 {
[%emt 0:00:01]} e5 {[%emt 0:00:03]} 7. Nb3 {[%emt 0:00:01]} Nc6 {[%emt 0:00:01]
} 8. Be2 {[%emt 0:00:04]} Be7 {[%emt 0:00:04]} 9. O-O {[%emt 0:00:03]} O-O {
[%emt 0:00:03]} 10. Kh1 {[%emt 0:00:01]} exf4 {[%emt 0:00:03]} 11. Bxf4 {
[%emt 0:00:05]} Be6 {[%emt 0:00:02]} 12. Nd5 {[%emt 0:00:05]} Nxe4 {[%emt 0:00:
36]} 13. Bf3 {[%emt 0:00:24]} Bxd5 {[%emt 0:00:09]} 14. Qxd5 {[%emt 0:00:02]}
Nf6 {[%emt 0:00:02]} 15. Qd2 {[%emt 0:00:01]} Qc7 {[%emt 0:00:04]} 16. Rad1 {
[%emt 0:00:02]} Ne5 {[%emt 0:00:02]} 17. c3 {[%emt 0:00:24]} Rfe8 {[%emt 0:00:
14]} 18. Nd4 {[%emt 0:00:06]} Bf8 {[%emt 0:00:02]} 19. Nf5 {[%emt 0:00:21]}
Nxf3 {[%emt 0:00:11]} 20. Rxf3 {[%emt 0:00:05]} Ne4 {[%emt 0:00:02]} 21. Qd4 {
[%emt 0:00:13]} Qc5 {[%emt 0:00:15]} 22. Ne3 {[%emt 0:00:48]} g6 {[%emt 0:00:
42]} 23. Nd5 {[%emt 0:00:28]} Qxd4 {[%emt 0:00:02]} 24. cxd4 {[%emt 0:00:06]}
Rac8 {[%emt 0:00:11]} 25. h3 {[%emt 0:00:10]} f5 {[%emt 0:00:03]} 26. Rc1 {
[%emt 0:00:08]} Rxc1+ {[%emt 0:00:02]} 27. Bxc1 {[%emt 0:00:02]} Rc8 {[%emt 0:
00:01]} 28. Bf4 {[%emt 0:00:07]} Rc2 {[%emt 0:00:01]} 29. Rb3 {[%emt 0:00:02]}
b5 {[%emt 0:00:04]} 30. a4 {[%emt 0:00:02]} g5 {[%emt 0:00:08]} 31. Be3 {
[%emt 0:00:03]} bxa4 {[%emt 0:00:03]} 32. Rb8 {[%emt 0:00:01]} f4 {[%emt 0:00:
07]} 33. Bg1 {[%emt 0:00:03]} Rc1 {[%emt 0:00:02]} 34. Kh2 {[%emt 0:00:01]} Kf7
{[%emt 0:00:02]} 35. Rb7+ {[%emt 0:00:01]} Kg6 {[%emt 0:00:04]} 36. Rb6 {
[%emt 0:00:03]} Rc2 {[%emt 0:00:03]} 37. Rxa6 {[%emt 0:00:03]} f3 {[%emt 0:00:
01]} 38. Ne3 {[%emt 0:00:02]} Rxb2 {[%emt 0:00:01]} 39. Rxa4 {[%emt 0:00:02]}
f2 {[%emt 0:00:01]} 40. Bxf2 {[%emt 0:00:02]} Rxf2 {[%emt 0:00:02]} 41. Ra6 {
[%emt 0:00:02]} h5 {[%emt 0:00:02]} 42. Nc4 {[%emt 0:00:01]} Rc2 {[%emt 0:00:
03]} 43. Ne5+ {[%emt 0:00:01]} Kf5 {[%emt 0:00:02]} 44. Nf3 {[%emt 0:00:03]}
Be7 {[%emt 0:00:02]} 45. Ra5+ {[%emt 0:00:01]} Kg6 {[%emt 0:00:02]} 46. Rd5 {
[%emt 0:00:03]} Bf6 {[%emt 0:00:01]} 47. Kg1 {[%emt 0:00:02]} g4 {[%emt 0:00:
01]} 48. hxg4 {[%emt 0:00:03]} hxg4 {[%emt 0:00:01]} 49. Nh2 {[%emt 0:00:05]}
0-1

[Event "FIDE Women World Blitz 2021"]
[Site "Warsaw"]
[Date "2021.12.29"]
[Round "7.36"]
[White "Atalik, Ekaterina"]
[Black "Smirnova, Ekaterina"]
[Result "1/2-1/2"]
[ECO "D02"]
[WhiteElo "2430"]
[BlackElo "2196"]
[Annotator "NA"]
[PlyCount "124"]
[EventDate "2021.12.29"]
[EventType "swiss"]
[EventCountry "POL"]
[Tiebreak "Cut1 Buchholz"]
[SourceTitle "playchess.com"]
[Source "ChessBase"]
[SourceQuality "1"]
[TimeControl "180+2"]

1. d4 {[%emt 0:00:01]} d5 {[%emt 0:00:00]} 2. Nf3 {[%emt 0:00:01]} Nf6 {
[%emt 0:00:01]} 3. g3 {[%emt 0:00:01]} Bf5 {[%emt 0:00:01]} 4. Bg2 {[%emt 0:00:
02]} e6 {[%emt 0:00:01]} 5. Nh4 {[%emt 0:00:05]} Bg4 {[%emt 0:00:06]} 6. h3 {
[%emt 0:00:03]} Bh5 {[%emt 0:00:01]} 7. O-O {[%emt 0:00:03]} Be7 {[%emt 0:00:
05]} 8. c4 {[%emt 0:00:02]} c6 {[%emt 0:00:01]} 9. cxd5 {[%emt 0:00:07]} cxd5 {
[%emt 0:00:08]} 10. Nc3 {[%emt 0:00:04]} O-O {[%emt 0:00:03]} 11. g4 {[%emt 0:
00:09]} Bg6 {[%emt 0:00:14]} 12. Nxg6 {[%emt 0:00:06]} hxg6 {[%emt 0:00:01]}
13. Bf4 {[%emt 0:00:03]} Nc6 {[%emt 0:00:01]} 14. e3 {[%emt 0:00:03]} Rc8 {
[%emt 0:00:02]} 15. Bg3 {[%emt 0:00:03]} Na5 {[%emt 0:00:08]} 16. Qe2 {[%emt 0:
00:08]} Nc4 {[%emt 0:00:07]} 17. Rac1 {[%emt 0:00:07]} Qb6 {[%emt 0:00:18]} 18.
b3 {[%emt 0:00:03]} Nd6 {[%emt 0:00:04]} 19. Na4 {[%emt 0:00:04]} Qa5 {[%emt 0:
00:06]} 20. f3 {[%emt 0:00:17]} b6 {[%emt 0:00:17]} 21. Kh2 {[%emt 0:00:05]}
Qb5 {[%emt 0:00:09]} 22. Qd2 {[%emt 0:00:23]} Qa6 {[%emt 0:00:09]} 23. Rxc8 {
[%emt 0:00:06]} Rxc8 {[%emt 0:00:01]} 24. Rc1 {[%emt 0:00:03]} Qb7 {[%emt 0:00:
08]} 25. Rxc8+ Qxc8 {[%emt 0:00:01]} 26. Qc3 {[%emt 0:00:04]} Qxc3 {[%emt 0:00:
05]} 27. Nxc3 {[%emt 0:00:01]} Kf8 {[%emt 0:00:06]} 28. e4 {[%emt 0:00:02]}
dxe4 {[%emt 0:00:17]} 29. fxe4 {[%emt 0:00:01]} Nd7 {[%emt 0:00:02]} 30. e5 {
[%emt 0:00:05]} Ne8 {[%emt 0:00:06]} 31. d5 {[%emt 0:00:08]} exd5 {[%emt 0:00:
04]} 32. Nxd5 {[%emt 0:00:01]} Bd8 {[%emt 0:00:11]} 33. Bf1 {[%emt 0:00:10]}
Nc7 {[%emt 0:00:08]} 34. Nb4 {[%emt 0:00:13]} Ne6 {[%emt 0:00:11]} 35. Nc6 {
[%emt 0:00:01]} Bc7 {[%emt 0:00:05]} 36. Nxa7 {[%emt 0:00:02]} Bxe5 {[%emt 0:
00:08]} 37. Bb5 {[%emt 0:00:03]} Bxg3+ {[%emt 0:00:05]} 38. Kxg3 {[%emt 0:00:
01]} Ne5 {[%emt 0:00:04]} 39. Nc8 {[%emt 0:00:05]} Nc7 {[%emt 0:00:12]} 40. a4
{[%emt 0:00:04]} Nxb5 41. axb5 {[%emt 0:00:01]} Nd7 {[%emt 0:00:07]} 42. Kf4 {
[%emt 0:00:02]} f6 {[%emt 0:00:02]} 43. Ke4 {[%emt 0:00:01]} Kf7 {[%emt 0:00:
01]} 44. Kd5 {[%emt 0:00:01]} f5 {[%emt 0:00:01]} 45. gxf5 gxf5 {[%emt 0:00:00]
} 46. Nd6+ {[%emt 0:00:13]} Kf6 {[%emt 0:00:03]} 47. Kc6 {[%emt 0:00:02]} Nc5 {
[%emt 0:00:03]} 48. Kxb6 {[%emt 0:00:03]} Nxb3 {[%emt 0:00:02]} 49. Kc7 {
[%emt 0:00:04]} f4 {[%emt 0:00:04]} 50. b6 {[%emt 0:00:02]} Na5 {[%emt 0:00:02]
} 51. Nc4 {[%emt 0:00:04]} f3 {[%emt 0:00:07]} 52. Nd2 {[%emt 0:00:05]} Nc4 {
[%emt 0:00:08]} 53. Nxf3 {[%emt 0:00:02]} Nxb6 54. Kxb6 {[%emt 0:00:02]} Kf5 {
[%emt 0:00:03]} 55. Kc5 {[%emt 0:00:04]} Kf4 {[%emt 0:00:00]} 56. Ng1 {[%emt 0:
00:01]} Kg3 {[%emt 0:00:01]} 57. Kd5 {[%emt 0:00:05]} Kg2 {[%emt 0:00:02]} 58.
Ke4 {[%emt 0:00:04]} Kxg1 {[%emt 0:00:02]} 59. Kf5 {[%emt 0:00:02]} Kg2 {
[%emt 0:00:02]} 60. h4 {[%emt 0:00:01]} Kg3 {[%emt 0:00:01]} 61. Kg5 {[%emt 0:
00:01]} g6 {[%emt 0:00:03]} 62. Kxg6 {[%emt 0:00:04]} Kxh4 {[%emt 0:00:01]}
1/2-1/2

[Event "FIDE Women World Blitz 2021"]
[Site "Warsaw"]
[Date "2021.12.29"]
[Round "7.37"]
[White "Dylag, Emilia"]
[Black "Kovanova, Baira"]
[Result "0-1"]
[ECO "E16"]
[WhiteElo "1863"]
[BlackElo "2331"]
[Annotator "NA"]
[PlyCount "49"]
[EventDate "2021.12.29"]
[EventType "swiss"]
[EventCountry "POL"]
[Tiebreak "Cut1 Buchholz"]
[SourceTitle "playchess.com"]
[Source "ChessBase"]
[SourceQuality "1"]
[TimeControl "180+2"]

1. d4 {[%emt 0:00:01]} Nf6 {[%emt 0:00:01]} 2. c4 {[%emt 0:00:01]} e6 {[%emt 0:
00:01]} 3. Nf3 {[%emt 0:00:02]} d5 {[%emt 0:00:01]} 4. g3 {[%emt 0:00:02]} Bb4+
{[%emt 0:00:02]} 5. Nbd2 {[%emt 0:00:04]} O-O {[%emt 0:00:10]} 6. Bg2 {[%emt 0:
00:02]} b6 {[%emt 0:00:18]} 7. O-O {[%emt 0:00:10]} Bb7 {[%emt 0:00:02]} 8. Qc2
{[%emt 0:00:41]} Nbd7 {[%emt 0:00:08]} 9. Ne5 {[%emt 0:00:11]} c5 {[%emt 0:00:
26]} 10. Nxd7 {[%emt 0:00:06]} Qxd7 {[%emt 0:00:02]} 11. dxc5 {[%emt 0:00:07]}
Bxc5 {[%emt 0:00:12]} 12. Nb3 {[%emt 0:00:20]} Be7 {[%emt 0:00:03]} 13. cxd5 {
[%emt 0:00:22]} Nxd5 {[%emt 0:00:07]} 14. Bd2 {[%emt 0:00:10]} Rac8 {[%emt 0:
00:03]} 15. Qd3 {[%emt 0:00:04]} Rfd8 {[%emt 0:00:06]} 16. Rfd1 {[%emt 0:00:03]
} Qe8 {[%emt 0:00:07]} 17. Qe4 {[%emt 0:00:44]} Ba8 {[%emt 0:00:06]} 18. Qg4 {
[%emt 0:00:05]} f5 {[%emt 0:00:35]} 19. Qh3 {[%emt 0:00:18]} Bf6 {[%emt 0:00:
01]} 20. e4 {[%emt 0:00:04]} Ne7 {[%emt 0:00:11]} 21. exf5 {[%emt 0:00:01]}
Bxg2 {[%emt 0:00:04]} 22. Kxg2 {[%emt 0:00:01]} Nxf5 {[%emt 0:00:04]} 23. Rab1
{[%emt 0:00:03]} Qc6+ {[%emt 0:00:05]} 24. Kg1 {[%emt 0:00:03]} Qf3 {[%emt 0:
00:09]} 25. Qg2 {[%emt 0:00:05]} 0-1